Workbook

Sheet МБТ
A2: ОБЪЕМ МЕЖБЮДЖЕТНЫХ ТРАНСФЕРТОВ, ПРЕДОСТАВЛЕННЫХ ИЗ ОБЛАСТНОГО БЮДЖЕТА БЮДЖЕТАМ МУНИЦИПАЛЬНЫХ ОБРАЗОВАНИЙ В 2017 ГОДУ
P4: тыс.руб.
A5: Наименование муниципальных образований | B5: Всего межбюджетных трансфертов | E5: в том числе
E6: дотация | H6: субсидия | K6: субвенция | N6: иные межбюджетные трансферты
B7: первоначально утвержденный бюджет | C7: уточненный годовой план | D7: исполнено | E7: первоначально утвержденный бюджет | F7: уточненный годовой план | G7: исполнено | H7: первоначально утвержденный бюджет | I7: уточненный годовой план | J7: исполнено | K7: первоначально утвержденный бюджет | L7: уточненный годовой план | M7: исполнено | N7: первоначально утвержденный бюджет | O7: уточненный годовой план | P7: исполнено
A8: Воловский | B8: =E8+H8+K8+N8 -> 216433.6 | C8: =F8+I8+L8+O8 -> 281542.6159 | D8: =G8+J8+M8+P8 -> 280784.6735 | E8: ='[1]Финансовая помощь (план)'!E11 -> 78906.6 | F8: ='[2]Исполнение по дотации'!B13 -> 87792.1 | G8: ='[2]Исполнение по дотации'!E13 -> 87792.1 | I8: ='[2]Исполнение по субсидии'!B14 -> 57369.95585 | J8: ='[2]Исполнение по субсидии'!C14 -> 56913.72005 | K8: ='[1]Финансовая помощь (план)'!X11 -> 137527 | L8: ='[2]Исполнение по субвенции'!B14 -> 136380.56 | M8: ='[2]Исполнение по субвенции'!G14 -> 136078.8534 | O8: ='[2]Исполнение по иным МБТ'!B12 -> 0 | P8: ='[2]Исполнение по иным МБТ'!G12 -> 0
A9: Грязинский | B9: 550991.602 | C9: 742627.6887 | D9: 738280.7698 | E9: ='[1]Финансовая помощь (план)'!E12 -> 92178.8 | F9: ='[2]Исполнение по дотации'!B14 -> 97642.415 | G9: ='[2]Исполнение по дотации'!E14 -> 97642.415 | I9: ='[2]Исполнение по субсидии'!B15 -> 160472.1697 | J9: ='[2]Исполнение по субсидии'!C15 -> 156365.5514 | K9: ='[1]Финансовая помощь (план)'!X12 -> 458812.802 | L9: ='[2]Исполнение по субвенции'!B15 -> 463313.104 | M9: ='[2]Исполнение по субвенции'!G15 -> 463072.8034 | O9: ='[2]Исполнение по иным МБТ'!B13 -> 21200 | P9: ='[2]Исполнение по иным МБТ'!G13 -> 21200
A10: Данковский | B10: 402016.082 | C10: 538021.5563 | D10: 533929.8312 | E10: ='[1]Финансовая помощь (план)'!E13 -> 127952.5 | F10: ='[2]Исполнение по дотации'!B15 -> 146956.9 | G10: ='[2]Исполнение по дотации'!E15 -> 146956.9 | I10: ='[2]Исполнение по субсидии'!B16 -> 115837.2423 | J10: ='[2]Исполнение по субсидии'!C16 -> 112123.7638 | K10: ='[1]Финансовая помощь (план)'!X13 -> 274063.582 | L10: ='[2]Исполнение по субвенции'!B16 -> 274477.414 | M10: ='[2]Исполнение по субвенции'!G16 -> 274099.1673 | O10: ='[2]Исполнение по иным МБТ'!B14 -> 750 | P10: ='[2]Исполнение по иным МБТ'!G14 -> 750
A11: Добринский | B11: 385439.58 | C11: 485480.3993 | D11: 485185.7176 | E11: ='[1]Финансовая помощь (план)'!E14 -> 85970.4 | F11: ='[2]Исполнение по дотации'!B16 -> 96850.67 | G11: ='[2]Исполнение по дотации'!E16 -> 96850.67 | I11: ='[2]Исполнение по субсидии'!B17 -> 89788.36328 | J11: ='[2]Исполнение по субсидии'!C17 -> 89758.10197 | K11: ='[1]Финансовая помощь (план)'!X14 -> 299469.18 | L11: ='[2]Исполнение по субвенции'!B17 -> 298841.366 | M11: ='[2]Исполнение по субвенции'!G17 -> 298576.9456 | O11: ='[2]Исполнение по иным МБТ'!B15 -> 0 | P11: ='[2]Исполнение по иным МБТ'!G15 -> 0
A12: Добровский | B12: 362553.32 | C12: 618031.356 | D12: 610111.8481 | E12: ='[1]Финансовая помощь (план)'!E15 -> 102864.6 | F12: ='[2]Исполнение по дотации'!B17 -> 129732.502 | G12: ='[2]Исполнение по дотации'!E17 -> 129732.502 | I12: ='[2]Исполнение по субсидии'!B18 -> 222513.1981 | J12: ='[2]Исполнение по субсидии'!C18 -> 214842.9021 | K12: ='[1]Финансовая помощь (план)'!X15 -> 259688.72 | L12: ='[2]Исполнение по субвенции'!B18 -> 265785.656 | M12: ='[2]Исполнение по субвенции'!G18 -> 265536.444 | O12: ='[2]Исполнение по иным МБТ'!B16 -> 0 | P12: ='[2]Исполнение по иным МБТ'!G16 -> 0
A13: Долгоруковский | B13: 248901 | C13: 420385.7408 | D13: 416605.6448 | E13: ='[1]Финансовая помощь (план)'!E16 -> 63040.7 | F13: ='[2]Исполнение по дотации'!B18 -> 68765.8 | G13: ='[2]Исполнение по дотации'!E18 -> 68765.8 | I13: ='[2]Исполнение по субсидии'!B19 -> 165568.9388 | J13: ='[2]Исполнение по субсидии'!C19 -> 161963.3578 | K13: ='[1]Финансовая помощь (план)'!X16 -> 185860.3 | L13: ='[2]Исполнение по субвенции'!B19 -> 186051.002 | M13: ='[2]Исполнение по субвенции'!G19 -> 185876.487 | O13: ='[2]Исполнение по иным МБТ'!B17 -> 0 | P13: ='[2]Исполнение по иным МБТ'!G17 -> 0
A14: Елецкий | B14: 367825.12 | C14: 537175.7623 | D14: 536324.8916 | E14: ='[1]Финансовая помощь (план)'!E17 -> 107264 | F14: ='[2]Исполнение по дотации'!B19 -> 122960.1 | G14: ='[2]Исполнение по дотации'!E19 -> 122960.1 | I14: ='[2]Исполнение по субсидии'!B20 -> 146157.5503 | J14: ='[2]Исполнение по субсидии'!C20 -> 145590.8916 | K14: ='[1]Финансовая помощь (план)'!X17 -> 260561.12 | L14: ='[2]Исполнение по субвенции'!B20 -> 268058.112 | M14: ='[2]Исполнение по субвенции'!G20 -> 267773.9 | O14: ='[2]Исполнение по иным МБТ'!B18 -> 0 | P14: ='[2]Исполнение по иным МБТ'!G18 -> 0
A15: Задонский | B15: 309574.862 | C15: 1094746.501 | D15: 1044871.314 | E15: ='[1]Финансовая помощь (план)'!E18 -> 82210.1 | F15: ='[2]Исполнение по дотации'!B20 -> 111520.3 | G15: ='[2]Исполнение по дотации'!E20 -> 111520.3 | I15: ='[2]Исполнение по субсидии'!B21 -> 753606.687 | J15: ='[2]Исполнение по субсидии'!C21 -> 704274.3573 | K15: ='[1]Финансовая помощь (план)'!X18 -> 227364.762 | L15: ='[2]Исполнение по субвенции'!B21 -> 229619.514 | M15: ='[2]Исполнение по субвенции'!G21 -> 229076.6567 | O15: ='[2]Исполнение по иным МБТ'!B19 -> 0 | P15: ='[2]Исполнение по иным МБТ'!G19 -> 0
A16: Измалковский | B16: 307647.962 | C16: 435469.3439 | D16: 434796.5087 | E16: ='[1]Финансовая помощь (план)'!E19 -> 139196.1 | F16: ='[2]Исполнение по дотации'!B21 -> 191319.2 | G16: ='[2]Исполнение по дотации'!E21 -> 191319.2 | I16: ='[2]Исполнение по субсидии'!B22 -> 76202.84394 | J16: ='[2]Исполнение по субсидии'!C22 -> 75598.10007 | K16: ='[1]Финансовая помощь (план)'!X19 -> 168451.862 | L16: ='[2]Исполнение по субвенции'!B22 -> 167947.3 | M16: ='[2]Исполнение по субвенции'!G22 -> 167879.2087 | O16: ='[2]Исполнение по иным МБТ'!B20 -> 0 | P16: ='[2]Исполнение по иным МБТ'!G20 -> 0
A17: Краснинский | B17: 231583.02 | C17: 292215.0785 | D17: 292137.2667 | E17: ='[1]Финансовая помощь (план)'!E20 -> 81680.9 | F17: ='[2]Исполнение по дотации'!B22 -> 86918.8 | G17: ='[2]Исполнение по дотации'!E22 -> 86918.8 | I17: ='[2]Исполнение по субсидии'!B23 -> 60046.16653 | J17: ='[2]Исполнение по субсидии'!C23 -> 60041.33377 | K17: ='[1]Финансовая помощь (план)'!X20 -> 149902.12 | L17: ='[2]Исполнение по субвенции'!B23 -> 145250.112 | M17: ='[2]Исполнение по субвенции'!G23 -> 145177.1329 | O17: ='[2]Исполнение по иным МБТ'!B21 -> 0 | P17: ='[2]Исполнение по иным МБТ'!G21 -> 0
A18: Лебедянский | B18: 461252.822 | C18: 660050.992 | D18: 659361.4814 | E18: ='[1]Финансовая помощь (план)'!E21 -> 133742.9 | F18: ='[2]Исполнение по дотации'!B23 -> 157250.9 | G18: ='[2]Исполнение по дотации'!E23 -> 157250.9 | I18: ='[2]Исполнение по субсидии'!B24 -> 171922.556 | J18: ='[2]Исполнение по субсидии'!C24 -> 171822.3315 | K18: ='[1]Финансовая помощь (план)'!X21 -> 327509.922 | L18: ='[2]Исполнение по субвенции'!B24 -> 330877.536 | M18: ='[2]Исполнение по субвенции'!G24 -> 330288.2499 | O18: ='[2]Исполнение по иным МБТ'!B22 -> 0 | P18: ='[2]Исполнение по иным МБТ'!G22 -> 0
A19: Лев-Толстовский | B19: 298023.52 | C19: 488500.9303 | D19: 488062.6264 | E19: ='[1]Финансовая помощь (план)'!E22 -> 106291.9 | F19: ='[2]Исполнение по дотации'!B24 -> 164619 | G19: ='[2]Исполнение по дотации'!E24 -> 164619 | I19: ='[2]Исполнение по субсидии'!B25 -> 133851.1863 | J19: ='[2]Исполнение по субсидии'!C25 -> 133646.2348 | K19: ='[1]Финансовая помощь (план)'!X22 -> 191731.62 | L19: ='[2]Исполнение по субвенции'!B25 -> 190030.744 | M19: ='[2]Исполнение по субвенции'!G25 -> 189797.3916 | O19: ='[2]Исполнение по иным МБТ'!B23 -> 0 | P19: ='[2]Исполнение по иным МБТ'!G23 -> 0
A20: Липецкий | B20: 480077.74 | C20: 621437.3918 | D20: 614620.0769 | E20: ='[1]Финансовая помощь (план)'!E23 -> 40138.4 | F20: ='[2]Исполнение по дотации'!B25 -> 56221.9 | G20: ='[2]Исполнение по дотации'!E25 -> 56221.9 | I20: ='[2]Исполнение по субсидии'!B26 -> 126281.4398 | J20: ='[2]Исполнение по субсидии'!C26 -> 120427.7894 | K20: ='[1]Финансовая помощь (план)'!X23 -> 439939.34 | L20: ='[2]Исполнение по субвенции'!B26 -> 438934.052 | M20: ='[2]Исполнение по субвенции'!G26 -> 437970.3876 | O20: ='[2]Исполнение по иным МБТ'!B24 -> 0 | P20: ='[2]Исполнение по иным МБТ'!G24 -> 0
A21: Становлянский | B21: 279559.34 | C21: 368460.2489 | D21: 367455.1713 | E21: ='[1]Финансовая помощь (план)'!E24 -> 102473.6 | F21: ='[2]Исполнение по дотации'!B26 -> 123061.6 | G21: ='[2]Исполнение по дотации'!E26 -> 123061.6 | I21: ='[2]Исполнение по субсидии'!B27 -> 68822.24489 | J21: ='[2]Исполнение по субсидии'!C27 -> 68801.09232 | K21: ='[1]Финансовая помощь (план)'!X24 -> 177085.74 | L21: ='[2]Исполнение по субвенции'!B27 -> 176576.404 | M21: ='[2]Исполнение по субвенции'!G27 -> 175592.479 | O21: ='[2]Исполнение по иным МБТ'!B25 -> 0 | P21: ='[2]Исполнение по иным МБТ'!G25 -> 0
A22: Тербунский | B22: 282619.68 | C22: 363809.03 | D22: 360082.0434 | E22: ='[1]Финансовая помощь (план)'!E25 -> 53315.1 | F22: ='[2]Исполнение по дотации'!B27 -> 57251.723 | G22: ='[2]Исполнение по дотации'!E27 -> 57251.723 | I22: ='[2]Исполнение по субсидии'!B28 -> 77563.00303 | J22: ='[2]Исполнение по субсидии'!C28 -> 73944.14242 | K22: ='[1]Финансовая помощь (план)'!X25 -> 229304.58 | L22: ='[2]Исполнение по субвенции'!B28 -> 228994.304 | M22: ='[2]Исполнение по субвенции'!G28 -> 228886.178 | O22: ='[2]Исполнение по иным МБТ'!B26 -> 0 | P22: ='[2]Исполнение по иным МБТ'!G26 -> 0
A23: Усманский | B23: 510485.42 | C23: 749940.3247 | D23: 733638.3289 | E23: ='[1]Финансовая помощь (план)'!E26 -> 170409.6 | F23: ='[2]Исполнение по дотации'!B28 -> 214248.735 | G23: ='[2]Исполнение по дотации'!E28 -> 214248.735 | I23: ='[2]Исполнение по субсидии'!B29 -> 182174.6457 | J23: ='[2]Исполнение по субсидии'!C29 -> 168311.2205 | K23: ='[1]Финансовая помощь (план)'!X26 -> 340075.82 | L23: ='[2]Исполнение по субвенции'!B29 -> 353516.944 | M23: ='[2]Исполнение по субвенции'!G29 -> 351078.3734 | O23: ='[2]Исполнение по иным МБТ'!B27 -> 0 | P23: ='[2]Исполнение по иным МБТ'!G27 -> 0
A24: Хлевенский | B24: 240331.62 | C24: 309195.6085 | D24: 307506.1412 | E24: ='[1]Финансовая помощь (план)'!E27 -> 58917.5 | F24: ='[2]Исполнение по дотации'!B29 -> 62089.9 | G24: ='[2]Исполнение по дотации'!E29 -> 62089.9 | I24: ='[2]Исполнение по субсидии'!B30 -> 69213.89647 | J24: ='[2]Исполнение по субсидии'!C30 -> 67784.33473 | K24: ='[1]Финансовая помощь (план)'!X27 -> 181414.12 | L24: ='[2]Исполнение по субвенции'!B30 -> 177891.812 | M24: ='[2]Исполнение по субвенции'!G30 -> 177631.9065 | O24: ='[2]Исполнение по иным МБТ'!B28 -> 0 | P24: ='[2]Исполнение по иным МБТ'!G28 -> 0
A25: Чаплыгинский | B25: 346455.92 | C25: 471003.5321 | D25: 470439.1019 | E25: ='[1]Финансовая помощь (план)'!E28 -> 86774.3 | F25: ='[2]Исполнение по дотации'!B30 -> 96530.425 | G25: ='[2]Исполнение по дотации'!E30 -> 96530.425 | I25: ='[2]Исполнение по субсидии'!B31 -> 112084.6511 | J25: ='[2]Исполнение по субсидии'!C31 -> 111971.5589 | K25: ='[1]Финансовая помощь (план)'!X28 -> 259681.62 | L25: ='[2]Исполнение по субвенции'!B31 -> 262388.456 | M25: ='[2]Исполнение по субвенции'!G31 -> 261937.118 | O25: ='[2]Исполнение по иным МБТ'!B29 -> 0 | P25: ='[2]Исполнение по иным МБТ'!G29 -> 0
A26: Итого по районам | B26: =SUM(B8:B25) -> 6281772.21 | C26: 9478094.101 | D26: 9374193.437 | E26: 1713328 | F26: 2071732.97 | G26: 2071732.97 | H26: 0 | I26: 2789476.739 | J26: 2694180.784 | K26: 4568444.21 | L26: 4594934.392 | M26: 4586329.683 | N26: 0 | O26: 21950 | P26: 21950
A28: г. Елец | B28: =E28+H28+K28+N28 -> 842344.782 | C28: 1096439.613 | D28: 1095439.601 | E28: ='[1]Финансовая помощь (план)'!E31 -> 230001.8 | F28: ='[2]Исполнение по дотации'!B33 -> 243836.7 | G28: ='[2]Исполнение по дотации'!E33 -> 243836.7 | I28: ='[2]Исполнение по субсидии'!B34 -> 195656.905 | J28: ='[2]Исполнение по субсидии'!C34 -> 195656.905 | K28: ='[1]Финансовая помощь (план)'!X31 -> 612342.982 | L28: ='[2]Исполнение по субвенции'!B34 -> 620846.008 | M28: ='[2]Исполнение по субвенции'!G34 -> 619845.9963 | O28: ='[2]Исполнение по иным МБТ'!B32 -> 36100 | P28: ='[2]Исполнение по иным МБТ'!G32 -> 36100
A29: г. Липецк | B29: 3567343.308 | C29: 6191426.826 | D29: 6133728.234 | E29: ='[1]Финансовая помощь (план)'!E32 -> 305534.7 | F29: ='[2]Исполнение по дотации'!B34 -> 448223.412 | G29: ='[2]Исполнение по дотации'!E34 -> 448223.412 | I29: ='[2]Исполнение по субсидии'!B35 -> 1763115.304 | J29: ='[2]Исполнение по субсидии'!C35 -> 1706201.064 | K29: ='[1]Финансовая помощь (план)'!X32 -> 3261808.608 | L29: ='[2]Исполнение по субвенции'!B35 -> 3311336.21 | M29: ='[2]Исполнение по субвенции'!G35 -> 3310941.372 | O29: ='[2]Исполнение по иным МБТ'!B33 -> 668751.9 | P29: ='[2]Исполнение по иным МБТ'!G33 -> 668362.3849
A30: Итого по городам | B30: =SUM(B28:B29) -> 4409688.09 | C30: 7287866.439 | D30: 7229167.835 | E30: 535536.5 | F30: 692060.112 | G30: 692060.112 | H30: 0 | I30: 1958772.209 | J30: 1901857.969 | K30: 3874151.59 | L30: 3932182.218 | M30: 3930787.369 | N30: 0 | O30: 704851.9 | P30: 704462.3849
A32: Итого распределено по местным бюджетам | B32: =B26+B30 -> 10691460.3 | C32: =C26+C30 -> 16765960.54 | D32: 16603361.27 | E32: 2248864.5 | F32: 2763793.082 | G32: 2763793.082 | H32: 0 | I32: 4748248.948 | J32: 4596038.754 | K32: 8442595.8 | L32: 8527116.61 | M32: 8517117.052 | N32: 0 | O32: 726801.9 | P32: 726412.3849
A34: Нераспределенная сумма | B34: =E34+H34+K34+N34 -> 2062688.745 | C34: =F34+I34+L34+O34 -> 27917.5231 | D34: =G34+J34+M34+P34 -> 0 | E34: =SUM('[1]Финансовая помощь (план)'!$O$37:$T$37) -> 32000 | F34: ='[2]Исполнение по МБТ всего'!B36 -> 0 | H34: ='[1]Финансовая помощь (план)'!$B$45 -> 2003288.745 | I34: ='[2]Исполнение по МБТ всего'!B37 -> 17556.0231 | N34: ='[1]Финансовая помощь (план)'!$B$44 -> 27400 | O34: ='[2]Исполнение по МБТ всего'!B38 -> 10361.5
A36: ВСЕГО | B36: =B32+B34 -> 12754149.04 | C36: =C32+C34 -> 16793878.06 | D36: 16603361.27 | E36: 2280864.5 | F36: 2763793.082 | G36: 2763793.082 | H36: 2003288.745 | I36: 4765804.971 | J36: 4596038.754 | K36: 8442595.8 | L36: 8527116.61 | M36: 8517117.052 | N36: 27400 | O36: 737163.4 | P36: 726412.3849
B38: =B36-'[1]Финансовая помощь (план)'!$B$39 -> 0 | C38: =C36-'[2]Исполнение по МБТ всего'!$B$40 -> 0 | D38: =D36-'[2]Исполнение по МБТ всего'!$G$40 -> 0
